Cogmind - Beta 10.2 @@@ ROGUE MODE // 2021.03.11 @ 15:10:54 Player: Exp. Geonium Core Result: Self-destructed Performance ------------- Evolutions (1) 500 Regions Visited (2) 400 Robots Destroyed (9) 45 Value Destroyed (162) 162 Prototype IDs (0) 0 Alien Tech Used (0) 0 Bonus (0) 0 TOTAL SCORE: 1107 Bonus ------- None Cogmind --------- Core Integrity 388/400 Matter 270/300 Energy 99/100 System Corruption 1% Temperature Cool (0) Movement Core (50) Location -9/Materials Parts ------- > --- POWER (1) -------- (None) > --- PROPULSION (2) --- (None) > --- UTILITY (4) ------ Visual Processing Unit Advanced Signal Interpreter > --- WEAPON (2) ------- Axe > --- INVENTORY (4) ---- Axe Axe Axe Peak State ------------ > --- POWER ------------ (None) > --- PROPULSION ------- (None) > --- UTILITY ---------- Visual Processing Unit Advanced Signal Interpreter > --- WEAPON ----------- Axe > --- INVENTORY -------- EM Shotgun Small Laser [Rating: 8] Favorites ----------- Power None Propulsion None Utility Visual Processing Unit Processor Visual Processing Unit Weapon Small Laser Energy Gun Small Laser Slashing Weapon Axe Build | -11 -10 -9 ------- Run | Scr Mat Mat Slots Evolved 2 | . . 2 Power . | . . . Propulsion . | . . . Utility 2 | . . 2 Weapon . | . . . Parts Attached 10 | 2 5 3 Power . | . . . Engine . | . . . Core . | . . . Reactor . | . . . Propulsion . | . . . Treads . | . . . Leg . | . . . Wheel . | . . . Hover . | . . . Flight . | . . . Utility 2 | . . 2 Device . | . . . Storage . | . . . Processor 2 | . . 2 Hackware . | . . . Protection . | . . . Artifact . | . . . Weapon 8 | 2 5 1 Energy Gun 7 | 2 5 . Energy Cannon . | . . . Ballistic Gun . | . . . Ballistic Cannon . | . . . Launcher . | . . . Special Weapon . | . . . Impact Weapon . | . . . Slashing Weapon 1 | . . 1 Piercing Weapon . | . . . Special Melee Weapon . | . . . Unidentified Prototypes . | . . . Parts Lost 3 | . 3 . Power . | . . . Propulsion . | . . . Utility . | . . . Weapon 3 | . 3 . Highest Loss Streak 2 | . 2 . Average Slot Usage (%) 25 | . 23 30 Processor 4 | . . 19 Energy Gun 19 | . 23 2 Slashing Weapon 1 | . . 8 Naked Turns 9 | . 9 . Heaviest Build 3 | 2 3 3 Greatest Support 3 | 3 3 3 Greatest Overweight (x) . | . . . Average Overweight (x) . | . . . Largest Inventory Capacity 4 | 4 4 4 Average Capacity 4 | 4 4 4 Most Carried 3 | . 2 3 Average Carried . | . . 2 Final Capacity 4 | 4 4 4 Final Carried 3 | . 2 3 Class Distribution -------------------- 100% | Mutant Dominant Class ---------------- Mutant | -10/Materials Mutant | -9/Materials Resources | -11 -10 -9 ----------- Run | Scr Mat Mat Matter Collected 250 | 200 50 . Remotely . | . . . Salvage Created 236 | . 236 . Parts 19 | . 19 . Haulers Intercepted . | . . . Recyclers Shooed . | . . . Parts Field Recycled . | . . . Retrieved Matter . | . . . Parts Self-Destructed . | . . . Prevented . | . . . Kills | -11 -10 -9 ------- Run | Scr Mat Mat Combat Hostiles Destroyed 9 | . 9 . Melee 1 | . 1 . Guns 8 | . 8 . Classes Destroyed 2 | . 2 . Swarmer 6 | . 6 . Grunt 3 | . 3 . Best Kill Streak 6 | . 6 . Combat Bots Only 6 | . 6 . Max Kills in Single Turn 1 | . 1 . Gunslinging . | . . . Exploded . | . . . Melee 1 | . 1 . Uniques/NPCs Destroyed . | . . . Combat | -11 -10 -9 -------- Run | Scr Mat Mat Damage Taken 423 | . 411 12 Core 253 | . 241 12 Absorbed by Shields . | . . . Core Remaining (%) 51 | 100 3 . Volleys Fired 23 | . 23 . Largest 2 | . 2 . Hottest 90 | . 90 . Shots Fired 39 | . 39 . Gun 39 | . 39 . Cannon . | . . . Launcher . | . . . Special . | . . . Kinetic . | . . . Thermal 33 | . 33 . Explosive . | . . . Electromagnetic 6 | . 6 . Robot Hit Streak 7 | . 7 . Robot Miss Streak 3 | . 3 . Penetration Max . | . . . Secondary Targets . | . . . Shots Hit Robots 19 | . 18 1 Core Hits 14 | . 14 . Critical Hits . | . . . Critical Kills . | . . . Critical Parts Destroyed . | . . . Melee Attacks 1 | . . 1 Impact . | . . . Slashing 1 | . . 1 Piercing . | . . . Sneak Attacks . | . . . Combat Hostiles . | . . . Follow-up Attacks . | . . . Damage Inflicted 274 | . 240 34 Guns 222 | . 222 . Cannons . | . . . Explosions . | . . . Melee 34 | . . 34 Ramming 18 | . 18 . Kinetic . | . . . Thermal 140 | . 140 . Explosive . | . . . Electromagnetic 82 | . 82 . Impact . | . . . Slashing 34 | . . 34 Piercing . | . . . Highest Corruption 1 | . . 1 Average Corruption 1 | . . 1 Corruption Purged . | . . . Overload Shots . | . . . Overflow Damage . | . . . Projectiles . | . . . Explosions . | . . . Melee . | . . . Knockbacks . | . . . Impact . | . . . Kinetic . | . . . Secondary . | . . . Self-Inflicted Damage 8 | . 8 . Shots . | . . . Rammed 6 | . 6 . Targets Rammed 6 | . 6 . Kicked . | . . . Crushed . | . . . Highest Temperature 30 | . 30 . Average Temperature 7 | . 7 . Received Heat Transfer 72 | . 66 6 Siege Activations . | . . . Robots Corrupted . | . . . Combat Hostiles . | . . . Parts Fried . | . . . Impact Corruptions . | . . . Robots Melted . | . . . Combat Hostiles . | . . . Parts Melted . | . . . Heat Transferred 325 | . 325 . Parts Sabotaged . | . . . Parts Stolen . | . . . Parts Stripped . | . . . Power Chain Reactions . | . . . Missiles Intercepted . | . . . Alert | -11 -10 -9 ------- Run | Scr Mat Mat Peak Influence 228 | . 228 122 Initial 96 | . . 96 Average 75 | . 78 105 Maximum Alert Level 1 | . 1 . Low Security (%) 96 | 100 94 100 Level 1 3 | . 5 . Level 2 . | . . . Level 3 . | . . . Level 4 . | . . . Level 5 . | . . . High Security . | . . . Max Security . | . . . Squads Dispatched 2 | . 2 . Investigation . | . . . Extermination . | . . . Reinforcement 2 | . 2 . Assault . | . . . Garrison . | . . . Intercept . | . . . Construction Impeded . | . . . Haulers Reinforced . | . . . Stealth | -11 -10 -9 --------- Run | Scr Mat Mat Distress Signals 3 | . 3 . Communications Jammed . | . . . Distress Signals . | . . . Times Spotted 19 | . 15 4 Peak Tracking Total 7 | . 7 4 Tactical Retreats . | . . . Traps | -11 -10 -9 ------- Run | Scr Mat Mat Traps Triggered 1 | . . 1 Indirectly . | . . . Trap Hack Attempts . | . . . Triggered . | . . . Disarmed . | . . . Reprogrammed . | . . . Reused . | . . . Traps Extracted . | . . . Installed . | . . . Triggered . | . . . Machines | -11 -10 -9 ---------- Run | Scr Mat Mat Machines Disabled . | . . . Max in Single Turn . | . . . Machines Sabotaged . | . . . Garrisons Compromised . | . . . Overloaded Fab Kills . | . . . Fab Network Shutdowns . | . . . Hacking | -11 -10 -9 --------- Run | Scr Mat Mat Machines Accessed 5 | . 3 2 Terminals 5 | . 3 2 Fabricators . | . . . Repair Stations . | . . . Recycling Units . | . . . Scanalyzers . | . . . Garrison Access . | . . . Total Hacks 14 | . 10 4 Successful 8 | . 6 2 Failed 6 | . 4 2 Catastrophic 1 | . . 1 Database Lockouts . | . . . Manual 14 | . 10 4 Terminals 14 | . 10 4 Fabricators . | . . . Repair Stations . | . . . Recycling Units . | . . . Scanalyzers . | . . . Garrison Access . | . . . Terminal Hacks 2 | . 2 . Level Access Points 1 | . 1 . Terminal Index 1 | . 1 . Fabricator Hacks . | . . . Repair Station Hacks . | . . . Recycling Unit Hacks . | . . . Scanalyzer . | . . . Garrison Access Hacks . | . . . Unauthorized Hacks 6 | . 4 2 Terminals 6 | . 4 2 Botnet 4 | . 3 1 Operators 2 | . 1 1 Fabricators . | . . . Repair Stations . | . . . Recycling Units . | . . . Scanalyzers . | . . . Garrison Access . | . . . Data Cores Recovered . | . . . Used . | . . . Hacking Detections 5 | . 3 2 Full Trace Events 1 | . . 1 Feedback Events . | . . . Feedback Blocked . | . . . Robot Schematics Acquired . | . . . Robots Built . | . . . Matter . | . . . Time . | . . . Total Robot Build Rating . | . . . Part Schematics Acquired . | . . . Parts Built . | . . . Matter . | . . . Time . | . . . Total Part Build Rating . | . . . Parts Repaired . | . . . Time . | . . . Parts Recycled . | . . . Recycled Matter . | . . . Retrieved Matter . | . . . Retrieved Components . | . . . Parts Scanalyzed . | . . . Part Schematics Acquired . | . . . Parts Damaged . | . . . Bothacking | -11 -10 -9 ------------ Run | Scr Mat Mat Used RIF Installer . | . . . Robots Hacked . | . . . Non-combat . | . . . Combat . | . . . Robot Hacks Applied . | . . . Relay Couplers Released . | . . . Robots Rewired . | . . . Allies Hacked . | . . . Hacks Repelled . | . . . Allies | -11 -10 -9 -------- Run | Scr Mat Mat Total Allies . | . . . Largest Group . | . . . Highest-Rated Group . | . . . Highest-Rated Ally . | . . . Total Orders . | . . . Ally Attacks . | . . . Total Damage . | . . . Kills . | . . . Allies Corrupted . | . . . Allies Melted . | . . . Intel | -11 -10 -9 ------- Run | Scr Mat Mat Robot Analysis Total . | . . . Derelict Logs Recovered . | . . . Drone Launches . | . . . Drone Recoveries . | . . . Exploration | -11 -10 -9 ------------- Run | Scr Mat Mat Turns Passed 276 | 29 194 53 Spaces Moved 337 | 52 203 82 Core 337 | 52 203 82 Treads . | . . . Legs . | . . . Wheels . | . . . Hover . | . . . Flight . | . . . Fastest Speed 50 | 50 50 50 Average Speed 50 | 50 50 50 Slowest Speed 50 | 50 50 50 Overloaded Moves . | . . . Propulsion Burnouts . | . . . Robots Hopped . | . . . Cave-ins Triggered . | . . . Exploration Rate (%) 21 | 3 43 17 Regions Visited 2 Branch Regions . Pre-discovered Areas . | . . . Known Exits Taken 1 | . 1 . Unknown Exits Taken 1 | 1 . . Scrap Searched . | . . . Spaces Dug . | . . . Terrain Destroyed . | . . . Melee . | . . . Projectile . | . . . AOE . | . . . Terrain Rammed . | . . . Walls Destroyed . | . . . Machines Disabled . | . . . Actions | -11 -10 -9 --------- Run | Scr Mat Mat Total 401 | 53 256 92 Wait 15 | . 15 . Move 335 | 51 202 82 Hop . | . . . Pick Up 5 | . 2 3 Fast Attach 7 | 2 2 3 Attach 3 | . 3 . Detach 3 | . 3 . Swap . | . . . Drop 3 | . . 3 Fire 23 | . 23 . Melee 1 | . . 1 Ram 6 | . 6 . Kick . | . . . Crush . | . . . Escape Stasis . | . . . Rewire . | . . . Trap . | . . . Miscellaneous . | . . . Route ------- -11/Scrapyard -10/Materials (discovered 3 exits: *Mat x3) -9/Materials History --------- Turn | Location | Event 3 | -11/Scrapyard | Discovered new exit (range 16) 30 | -11/Scrapyard | Entered Materials 45 | -10/Materials | Identified exit to Materials 165 | -10/Materials | Core integrity fell below 50% 211 | -10/Materials | Core integrity fell below 20% 224 | -10/Materials | Entered another Materials area 224 | -9/Materials | Evolved 2 slots: Utility x2 277 | -9/Materials | Self-destructed Last Messages --------------- 00240_ Dropped Sml. Laser. 00241_ Dropped EM Shotgun. 00242_ Acquired Axe. 00249_ K-01 Serf collects debris. 00253_ Triggered Shock Trap. 00253_ The floor emits a surge of raw power. 00253_ System corrupted (+1). 00256_ K-01 Serf collects debris. 00258_ Connecting with Terminal... >>Trojan(Botnet) Trojan loaded successfully. Testing... Terminal linked with 0 systems. Awaiting botnet instructions. >>Trojan(Operators) Trojan loaded successfully. Testing... Operator tracking enabled and active. 00260_ K-01 Serf collects debris. 00277_ Connecting with Terminal... Map ----- +----------------------------------------------------+ | ?????????????????????????????????????????????????? | | ?????????????????????????????????????????????????? | | ?????????????????????????????????????????????????? | | ?????????????????????????????????????????????????? | | ?????????????????????????????????????????????????? | | ?????????????????????????????????????????????????? | | ?????????????????????????????????????????????????? | | ?????????????????????????????????????????????????? | | ??????????????????????? ???????????????????????? | | ??????????????????????? ???????????????????????? | | ??????????????????????# ???????????????????????? | | ??????????????????????# ???????????????????????? | | ??????????????????????# ???????????????????????? | | ??????????????????????# ???????????????????????? | | ??????????????????????# ?########??????????????? | | ??????????????????????# ?# ?????????????? | | ?????????????????####?# o## ""??# ???????+??? | | ?????????????????? ?# ## ""??# """"" #??? | | ??????????????????? # ## "???# """"" #??? | | ???????????????????? # ## ???# """"" #??? | | ????????????????????? /g #? ????# """"" #??? | | ??????????????????????#b #? ????# """"" #??? | | ??????????????????????# #?? ?????? """"" #??? | | ?????????????????????## ##? ???????? ????# | | ????????????????###### ###+###########+##### # | | ?????????? T@ | | ?????????? "" | | ?????????? | | ??????????? ## ######## ##### ###### | | ?????????????? ???###+###??#####+#???# #????? | | ?????????????? ?????? ??????# ??# #????? | | ????????????????????# ???????# ?## ##???? | | ????????????????????# ????????# # ##### | | ????????????????????#?????????# """ # | | ??????????????????????????????? """"" + T | | ??????????????????????????????? """"" # | | ????????????????????????????????""""" # ##### | | ???????????????????????????????? """ ?#######???? | | ???????????????????????????????? ???????????? | | ???????????????????????????????######????????????# | | ?????????????????????????????????????????????????# | | ?????????????????????????????????????????????????# | | ?????????????????????????????????????????????????# | | | | | | | | | | | | | | | +----------------------------------------------------+ Best States ------------- Heat Dissipation 28 Energy Generation 5 Energy Capacity 100 Matter Stores 300 Matter Capacity 300 Sight Range 18 Terrain Scan Density 10 Evasion (%) 50 Item Schematics ----------------- None Robot Schematics ------------------ None Fabricated ------------ Nothing Alien Tech Used ----------------- None Achievements -------------- None Challenges ------------ None Game ------ Seed XenonLongswordDeconstructor Manual? 0 Play Time 00:06:35 Cumulative 53.5 hours Start 2021.03.11 @ 14:58:46 End 2021.03.11 @ 15:10:54 Sessions 1 Manual Loads 0 Difficulty Rogue Special Mode None Game No. 90 Rogue 90 Adventurer 0 Explorer 0 Win Type - Total 1 Types 1/0/0/0/0/0/0/0/0 Lore% 36 Gallery% 50 Achievement% 42 Wizard Run 0 Options --------- ASCII 0 Keyboard 0 Movement Numpad Keybinds 0 Fullscreen 1 Font 18/Terminus Map View 76x50 Tactical HUD 1 Map Filters NONE Filters NONE Steam 1 RUN: e8332bee-c775-46d7-bea9-13b00ccc929a